{"text_format":"1","workbook":"xlsx","n_sheets":3,"sheets":["Formulario","Listados","Opciones"],"not_rendered":{"charts":0,"images":0,"macros":1,"external_links":0,"defined_names":0,"comments":2,"pivot_tables":0},"unopened":[],"bounds":{"document_bytes":16777216,"sheet_cells":100000,"rows_first":2000,"rows_last":500,"rows_between":2000,"halvings":0,"cell_chars":16384,"cell_head_chars":4096},"cells_cut":0,"cells_raw":0,"read":"whole","date_system":"1900"}

{"sheet":"Formulario","index":0,"n_rows":147,"n_cols":24,"rows_kept":147,"cut":false,"hidden":false,"merged":[[142,1,142,21],[31,4,31,5],[31,7,31,8],[33,4,33,5],[52,13,52,14],[51,10,51,11],[52,10,52,11],[52,16,52,17],[48,13,48,14],[49,13,49,14],[48,16,48,17],[49,16,49,17],[51,16,51,17],[34,7,34,8],[37,13,37,14],[39,13,39,14],[46,16,46,17],[45,16,45,17],[43,19,43,22],[41,23,42,23],[44,19,45,23],[46,19,46,22],[57,4,57,5],[58,4,58,5],[53,4,53,5],[33,22,33,23],[34,22,34,23],[58,16,58,17],[52,19,52,22],[47,19,48,22],[49,19,49,22],[47,23,48,23],[50,19,50,22],[51,19,51,22],[43,13,43,14],[39,10,39,11],[40,10,40,11],[36,13,36,14],[14,1,19,23],[24,1,24,2],[23,19,23,20],[12,3,12,7],[36,10,36,11],[37,10,37,11],[40,13,40,14],[30,1,30,2],[30,4,30,5],[37,1,37,2],[23,1,23,2],[34,4,34,5],[27,1,27,2],[27,4,27,5],[28,1,28,2],[28,4,28,5],[36,1,36,2],[39,1,39,2],[40,1,40,2],[21,22,21,23],[21,16,21,17],[21,19,21,20],[23,22,23,23],[33,7,33,8],[40,19,40,23],[42,13,42,14],[36,19,36,20],[37,19,37,20],[42,16,42,17],[43,16,43,17],[41,19,42,22],[39,19,39,23],[30,22,30,23],[31,22,31,23],[30,19,30,20],[31,19,31,20],[10,12,10,16],[8,12,8,16],[1,1,1,23],[2,1,2,23],[3,1,3,23],[8,21,8,23],[8,3,8,7],[10,3,10,7],[5,2,5,4],[21,1,21,2],[21,4,21,5],[21,7,21,8],[21,10,21,11],[21,13,21,14],[57,1,57,2],[58,1,58,2],[48,7,48,8],[49,7,49,8],[51,13,51,14],[27,10,27,11],[28,10,28,11],[57,7,57,8],[57,10,57,11],[42,4,42,5],[43,4,43,5],[45,4,45,5],[27,7,27,8],[28,7,28,8],[46,4,46,5],[45,7,45,8],[46,7,46,8],[30,7,30,8],[31,1,31,2],[108,1,108,3],[107,4,107,19],[108,4,108,19],[106,1,106,3],[106,4,106,19],[57,16,57,17],[57,22,57,23],[58,22,58,23],[54,16,54,17],[54,19,54,20],[54,22,54,23],[55,16,55,17],[55,19,55,20],[55,22,55,23],[57,13,57,14],[58,13,58,14],[101,1,101,3],[101,4,101,6],[101,7,101,15],[101,16,101,19],[93,16,93,19],[107,1,107,3],[99,1,99,3],[99,4,99,6],[145,8,145,15],[125,1,126,21],[127,1,133,21],[118,1,118,6],[118,7,118,21],[119,1,119,6],[119,7,119,21],[122,1,122,6],[122,7,122,21],[136,1,140,21],[144,8,144,15],[120,1,120,6],[120,7,120,21],[121,1,121,6],[121,7,121,21],[117,1,117,6],[115,7,115,21],[116,7,116,21],[117,7,117,21],[109,1,109,3],[109,4,109,19],[115,1,115,6],[114,1,114,22],[116,1,116,6],[63,11,63,14],[94,1,94,3],[94,4,94,6],[94,7,94,15],[94,16,94,19],[95,1,95,3],[95,4,95,6],[95,7,95,15],[95,16,95,19],[62,19,64,23],[93,1,93,3],[93,4,93,6],[93,7,93,15],[77,7,77,15],[92,1,92,3],[79,21,82,23],[92,4,92,6],[92,7,92,15],[92,16,92,19],[99,7,99,15],[100,1,100,3],[96,1,96,3],[96,4,96,6],[96,7,96,15],[96,16,96,19],[97,1,97,3],[97,4,97,6],[97,7,97,15],[97,16,97,19],[98,1,98,3],[98,4,98,6],[98,7,98,15],[98,16,98,19],[100,4,100,6],[100,7,100,15],[100,16,100,19],[99,16,99,19]]}
[]
[null,"DEPARTAMENTO DE INGENIERÍA INDUSTRIAL"]
[]
[null,"FORMULARIO - REVISIÓN DE AVANCE DE PLAN DE ESTUDIOS (PREGRADO)"]
[]
[null,"FECHA"]
[]
[null,"INFORMACIÓN PERSONAL"]
[null,"Nombre(s)",null,null,null,null,null,null,null,null,"Apellidos",null,null,null,null,null,null,null,null,"Código"]
[]
[null,"Correo Uniandes",null,null,null,null,null,null,null,null,"Correo Alterno"]
[]
[null,"Doble Programa",null,null,null,null,null,null,null,null,"Primer Semestre Matriculado en Uniandes (Ej: 201910) *"]
[]
[null,"A continuación encontrará un pensum del cual podrá seleccionar en una lista desplegable el curso obligatorio cursado. Únicamente seleccione los cursos vistos y APROBADOS del plan de estudios que le aparecen en su historia académica en Banner (no incluya los cursos del semestre actual, deje las casillas sin seleccionar y diligencie la información de los cursos inscritos este semestre en la sección correspondiente al final del formulario). En las casillas de los CLEs y los requisitos (Tipo E, Tipo Épsilon) diligencie código y nombre del curso, así como en la sección correspondiente a los CBUs y a las electivas de su Ciclo Terminal. Recuerde que esta información será verificada por la Coordinación de Ingeniería Industrial una vez la Oficina Registro nos notifique su entrega de documentos para grado en las fechas establecidas en el calendario. Es responsabilidad del estudiante revisar el avance de su plan de estudios basado en la información del CAPP, por lo anterior, usted debe realizar su revisión de manera consciente e informada, y con anterioridad,  para que pueda tomar las decisiones a las que haya lugar con tiempo. No olvide también que, según el Reglamento, al cursar una práctica en un programa académico, no podrá graduarse de dicho programa en el mismo semestre en el que esté cursando la práctica."]
[]
[]
[]
[]
[]
[]
[null,"Semestre 1",null,null,"Semestre 2",null,null,"Semestre 3",null,null,"Semestre 4",null,null,"Semestre 5",null,null,"Semestre 6",null,null,"Semestre 7",null,null,"Semestre 8"]
[]
[null,"Const & Democracia",null,null,null,null,null,null,null,null,null,null,null,null,null,null,null,null,null,"CLE 1",null,null,"CLE 2"]
[null,null,null,null,null,null,null,null,null,null,null,null,null,null,null,null,null,null,null,"Código",null,null,"Código"]
[null,null,null,null,null,null,null,null,null,null,null,null,null,null,null,null,null,null,null,"Nombre",null,null,"Nombre"]
[]
[null,"Calc Diferencial",null,null,"Calc Integ-Ec.Dif",null,null,"Algebra Lineal 1",null,null,"Calc Vectorial"]
[]
[]
[null,"Electiva BIOL/QUIM",null,null,"Fisica 1",null,null,"Fisica 2",null,null,null,null,null,null,null,null,null,null,null,"Electiva ciencias 1",null,null,"Electiva ciencias 2"]
[]
[]
[null,null,null,null,"Fisica Exp 1",null,null,"Fisica Exp 2",null,null,null,null,null,null,null,null,null,null,null,null,null,null,"Electiva ciencias 3"]
[]
[]
[null,"Introducción",null,null,null,null,null,null,null,null,"Prob & Estad I",null,null,"ANADEC",null,null,null,null,null,"Electiva Ingeniería"]
[]
[]
[null,"Intro. Progr.",null,null,null,null,null,null,null,null,"Princ Optimización",null,null,"Modelos probabilísticos",null,null,null,null,null,"RESUMEN DE CRÉDITOS CURSADOS"]
[null,null,null,null,null,null,null,null,null,null,null,null,null,null,null,null,null,null,null,"Educación General"]
[null,null,null,null,null,null,null,null,null,null,null,null,null,null,null,null,null,null,null,"Escrituras Universitarias/Español",null,null,null,{"$f":"IF(AND(Formulario!B58=\"Req. Leng. Materna\",Formulario!B59=\"Español\"),3,IF(B58=\"Escritura Univ. 1\",COUNTA(Formulario!B59,Formulario!E59)*2,0))","v":0}]
[null,null,null,null,"S A D",null,null,null,null,null,null,null,null,"Prob & Estad II",null,null,"Simulación"]
[null,null,null,null,null,null,null,null,null,null,null,null,null,null,null,null,null,null,null,"CBUs",null,null,null,{"$f":"IF(Formulario!L64=\"Antigua (6 CBU´s de 3 créditos)\",COUNTA(Formulario!E68,Formulario!E69,Formulario!E70,Formulario!E73,Formulario!E74,Formulario!E75)*3,IF(Formulario!L64=\"Nueva (7 CBU´s de 2 créditos)\",COUNTA(Formulario!E68:G74)*2,IF(Formulario!L64=\"Regl. Transición\",Formulario!U75,0)))","v":0}]
[null,null,null,null,null,null,null,null,null,null,null,null,null,null,null,null,null,null,null,"Obligatorios y Electivas"]
[null,null,null,null,"Teo. Cons & Firma",null,null,"Sisconger",null,null,null,null,null,null,null,null,"Finanzas"]
[null,null,null,null,null,null,null,null,null,null,null,null,null,null,null,null,null,null,null,"Obligatorios",null,null,null,{"$f":"COUNTA(Formulario!B25,Formulario!B29,Formulario!B38,Formulario!B41,Formulario!E29,Formulario!E32,Formulario!E44,Formulario!E47,Formulario!H29,Formulario!H32,Formulario!H47,Formulario!H50,Formulario!K29,Formulario!K38,Formulario!K41,Formulario!K53,Formulario!N38,Formulario!N41,Formulario!N44,Formulario!N50,Formulario!N53,Formulario!Q44,Formulario!Q47,Formulario!Q50,Formulario!Q53,Formulario!Q56,Formulario!W56)*3 + IF(E35=\"FISI 1019 Física Exp 1\",1,0) + IF(H35=\"FISI 1029 Física Exp 2\",1,0)","v":0}]
[null,null,null,null,null,null,null,null,null,null,null,null,null,null,null,null,null,null,null,"Electivas BIO/Ciencias/Ingeniería",null,null,null,{"$f":"COUNTA(Formulario!T32,Formulario!W32,Formulario!B32,Formulario!T38)*3 + IF(AND(COUNTIF(E35:I35,\"No lo cursé\")>0,W35<>\"\"),COUNTIF(E35:I35,\"No lo cursé\"),0)","v":0}]
[null,null,null,null,null,null,null,"Peso",null,null,null,null,null,"Dinámica de Sistemas",null,null,"Estrategia Organiz."]
[null,null,null,null,null,null,null,null,null,null,null,null,null,null,null,null,null,null,null,"Ciclo Terminal",null,null,null,{"$f":"IF(Formulario!H78=\"Área Mayor y Área Menor\",COUNTA(Formulario!E83,Formulario!E84,Formulario!E85,Formulario!E88,Formulario!E89)*3,IF(Formulario!H78=\"4 Cursos de la estructura de la Maestría en Ingeniería Industrial\",COUNTA(Formulario!E86,Formulario!E87,Formulario!E88,Formulario!E89)*4,0))","v":0}]
[null,null,null,null,null,null,null,null,null,null,null,null,null,null,null,null,null,null,null,"CLEs",null,null,null,{"$f":"COUNTA(Formulario!U25,Formulario!X25)*3","v":0}]
[null,null,null,null,null,null,null,null,null,null,"Fund. Producción",null,null,"Control de Produc.",null,null,"Logística",null,null,"Total",null,null,null,{"$f":"SUM(X42,X44,X47,X48,X50,X51)","v":0}]
[null,null,null,null,null,null,null,null,null,null,null,null,null,null,null,null,null,null,null,"Semestre Según Créditos",null,null,null,{"$f":"IF(OR(Formulario!L64=\"Regl. Transición\",(Formulario!L64=\"Nueva (7 CBU´s de 2 créditos)\")),MIN((X52/134)*8,8),MIN((X52/137)*8,8))","v":0}]
[null,null,null,null,"Curso Tipo Épsilon"]
[null,null,null,null,"Código",null,null,null,null,null,null,null,null,null,null,null,"Proy. Intermedio",null,null,"Req. Proy.Grado 1",null,null,"Proy. Grado 2"]
[null,null,null,null,"Nombre"]
[]
[null,"Escritura Univ. 1",null,null,"Escritura Univ. 2",null,null,"Curso Tipo E 1",null,null,"Curso Tipo E 2",null,null,"Req. Lectura Inglés",null,null,"Req. D. Leng. Extr.",null,null,null,null,null,"Saber Pro"]
[null,null,null,null,null,null,null,"Código",null,null,"Código"]
[null,null,null,null,null,null,null,"Nombre",null,null,"Nombre"]
[]
[null,"CURSOS DE FORMACIÓN INTEGRAL"]
[null,null,null,null,null,null,null,null,null,null,null,null,null,null,null,null,null,null,null,"* Al cambiar de opción se puede perder la información de los CBUs, se recomienda guardar los datos diligenciados."]
[null,"CURSOS CBU: seleccione la reglamentación del CBU que rige en su caso:",null,null,null,null,null,null,null,null,null,"Seleccione"]
[]
[]
[]
[]
[]
[]
[]
[]
[]
[]
[]
[]
[null,"CURSOS DE FUNDAMENTOS DE INGENIERÍA INDUSTRIAL - CICLO TERMINAL"]
[null,"¿Cómo cursó su ciclo terminal?",null,null,null,null,null,"Seleccione"]
[]
[null,null,null,null,null,null,null,null,null,null,null,null,null,null,null,null,null,null,null,null,null,"* Al cambiar de opción se puede perder la información del ciclo terminal, se recomienda guardar los datos diligenciados."]
[]
[]
[]
[]
[]
[]
[]
[]
[]
[]
[null,"LISTA DE CURSOS INSCRITOS EN EL SEMESTRE ACTUAL Y LOS QUE TOMARÁ EN PERIODO INTERSEMESTRAL"]
[]
[null,"Semestre",null,null,"Código del Curso",null,null,"Nombre del Curso",null,null,null,null,null,null,null,null,"Créditos"]
[null,{"$f":"Listados!A54","v":"202510"}]
[]
[]
[]
[]
[]
[]
[]
[]
[]
[null,"OPCIONES ACADÉMICAS ¿Tiene opciones académicas finalizadas? (recuerde que debe realizar la formalización de terminación de la opción con la unidad que la ofrece)."]
[null,null,null,null,null,null,null,null,"NO"]
[]
[null,"Opción académica 1"]
[null,"Opción académica 2"]
[null,"Opción académica 3"]
[null,"Opción académica 4"]
[]
[]
[null,"HOMOLOGACIONES ¿Tiene homologaciones de cursos aprobados? (por favor relacione sus solicitudes de homologación aprobadas).",null,null,null,null,null,null,null,null,null,null,null,null,null,null,null,"No"]
[]
[null,"Diligencie la información del código que le proporcionó el sistema de solicitud de homologaciones y el nombre del curso del programa de ingeniería industrial que le fue homologado."]
[null,"Código de Solicitud de Homologación",null,null,null,null,null,"Nombre del Curso Homologado"]
[]
[]
[]
[]
[]
[]
[]
[]
[null,"TESTIMONIO *"]
[null,"* En un párrafo, cuéntenos su experiencia como estudiante del programa de pregrado en Ingeniería Industrial resaltando los aspectos que considere importantes dentro de su formación en la Universidad de Los Andes (campo obligatorio para los candidatos a grado)."]
[]
[]
[]
[]
[]
[]
[]
[]
[]
[null,"OBSERVACIONES ADICIONALES O COMENTARIOS"]
[]
[]
[]
[]
[]
[]
[null,"Si considera que es candidat@ a grado, por favor guarde este archivo con su código y nombres completos (Ej. 201415XXX_Andrea Castro) y envíelo a graduandosindustrial@uniandes.edu.co"]
[]
[null,null,null,null,null,null,null,null,"Fin del Formulario"]
[null,"Elaborado por: Ilmer Cañón"]
[null,"2019-12-16"]

{"sheet":"Listados","index":1,"n_rows":92,"n_cols":38,"rows_kept":92,"cut":false,"hidden":true,"merged":[]}
[null,"Obligatorias"]
["Constitución y democracia","DERE 1300 Cons & Dem","DERE 2301 Der Const."]
["Cálculo diferencial","MATE 1203 Calc Difer","MATE 1204 Calc Difer (Hon)"]
["Introd. Ing. Industrial","IIND 1000 Intr. Indust.","ICYA 1113 Intr. Ing. Ambi.","ISIS 1001 Intr. Ing. Sist","IELE 1000 Intr. Ing. Elect","IGEN 1001 Intr. Ing. Gral","IMEC 1000 Intr. Ing. Mecan.","IQUI 1001 Intr. Ing. Quim.","IQUI 1031 Intr. Diseño prod y proc","ICYA 1114 Intr. Ing. Civil","IBIO 1000 Intr. Ing. Bio.","IALI 1031 Intr. Diseño prod y proc","IQYA 1031 Intr. Dis. Int. Prod y Proc."]
["APO I","ISIS 1221 Intro. Program.","ISIS 1204 Apo I","ISIS 1201 Intr. Progr."]
["Req Lengua Materna","Español","Icfes"]
["Física 1","FISI 1018 Física 1","FISI 1518 Física 1 (REF)"]
["Física Experimental 1","FISI 1019 Física Exp 1","No lo cursé"]
["APO 2","IIND 2109 SAD","ISIS 1205 Apo 2","ISIS 1202 Taller Progr.","ISIS 1225 Estruc. Datos y algor."]
["Teoría Cons. & Firma","ECON 2106 Teo. Con. Y Firma","IIND 2404 Org. Y Merc.","Otro"]
["Algebra lineal 1","MATE 1105 Alg. Lineal 1","MATE 1106 Alg. Lineal (Hon)","MATE 1108 Alg. Lin-Ecu.","MATE 1109 Alg. Lin-Ecu. (Hon)"]
["Física 2","FISI 1028 Física 2","FISI 1528 Física 2 (REF)"]
["Física Experimental 2","FISI 1029 Física Exp 2","No lo cursé"]
["Sisconger","IIND 2400 Sisconger"]
["Pensamiento sistémico en las organizaciones","IIND 2302 Peso","IIND 2300 Fund. Org."]
["Cálculo vectorial","MATE 1207 Calc.vec.","MATE 1208 Calc. Vec. (Hon)","MATE 1257 CalcVecComp"]
["Prob. & Estadística I","IIND 2106 Prob y Est. I","IIND 2101 Probabilidad"]
["Principios optimización","IIND 2103 Princ. Opt.","IELE 3006 Optim."]
["Fund. Producción","IIND 2202 Fund. Prod.","IIND 2200 Diseñ Prod y Proc"]
["Req. Lectura en Inglés","LENG 2999","LENG 1156","LENG 1103","ENGL 7","RLEC"]
["Anadec","IIND 2401 Anadec"]
["Modelos probabilísticos","IIND 2104 Mod. Prob."]
["Prob. & Estadística II","IIND 2107 Prod. Y Est. II","IIND 2102 Fund. Estad."]
["Dinámica de sistemas","IIND 2301 Din. Sist."]
["Control de producción","IIND 2201 Control Prod."]
["Simulación","IIND 3113 Simulación","IIND 2105 Simulación"]
["Finanzas","IIND 3400 Finanzas"]
["Estrategia organizacional","IIND 3311 Estra. Organ.","IIND 2303 Estra. Organ."]
["Logística","IIND 3221 Logística","IIND 2203 Logística"]
["Proyecto intermedio","IIND 3991 Práctica 6 cred.","IIND 3992 Práctica 3 cred.","IIND 3006 Proy. Interm.","Otro"]
["Req. Dominio Lengua Extranjera","LENG 3999","LENG 1106","LENG 1161","LENG 1162","RDOM"]
["Proyecto de grado 1","RPG Req. Proy. Grado 1","IIND 3000"]
["Proyecto de grado 2","IIND 3001 Proy. Grado 2"]
["Electiva en Ingenieria","ICYA 1110 Quím. Ambiental","ICYA 1116 Estática","IELE 1002 Fund. Circuitos","IELE 1006 Fund. Circuitos","IELE 1400 Fund. Redes","IELE 2010 Materiales para IIE","IELE 2300 Anál.Sist.Control","IELE 2500 Señales","IMEC 1001 Fund. Exper.","IMEC 1330 Termodinámica","IMEC 1410 Ciencia Mater.","IMEC 1503 Diseño Gráfico en Ing.","IMEC 1541 Mecánica de solidos rig.","IMEC 2210 Mecánica de fluidos","ISIS 1104 Matem. Estr. Y Log.","ISIS 1107 Matem. Estr. Y Log.","ISIS 1404 TI en las organiz.","IQUI 2010 Fund. Proc. Ind.","IQUI 2020 Termodinámica","IQUI 2101 Fenóm. Transp. 1","IBIO 2240 Progr. Científica","ELIN 1001 Elect. Ing.","Otro"]
["Calculo Integral-Ecuaciones","MATE 1214 Calc. Int. Ecuac.","MATE 1215 Calc. Int. Ec. (Hon)"]
["Escritura Universitaria 1","LENG 1511","LITE 1621","ESCR 1101"]
["Escritura Universitaria 2","LENG 1512","LITE 1622","ESCR 1102"]
["Electiva BIOL/QUIM","BIOL 1300 Biol. Organis.","BIOL 1322 Ecol. No Biólogos","BIOL 1327 Ecol. Princ. Y Aplic.","MBIO 1100 Biolog. Celular","MBIO 2100 Bioquímica","MBIO 2102 Biol. Molec.","QUIM 1101 Quím. Gral.","QUIM 1103 Química","QUIM 1105 Aplic. Química","QUIM 1210 Quím. Inorgánica","QUIM 1301 Quím. Orgánica","QUIM 1303 Fund. Quim. Org.","QUIM 3401 Bioquímica","QUIM 3407 Quím. Aromas","QUIM 3413 Quím. Medicinal","QUIM 1110 Teo. Atom. Y Molec.","ELCI 1003 Elect. Biol/Quim","Otra"]
["Electiva en Ciencias","BIOL 1300 Biol. Organis.","BIOL 1322 Ecol. No Biólogos","BIOL 1327 Ecol. Princ. Y Aplic.","BIOL 2300 Microbiología","MBIO 1100 Biolog. Celular","MBIO 2100 Bioquímica","MBIO 2102 Biol. Molec.","QUIM 1101 Quím. Gral.","QUIM 1103 Química","QUIM 1105 Aplic. Química","QUIM 1110 Teo. Atom. Y Molec.","QUIM 1210 Quím. Inorgánica","QUIM 1301 Quím. Orgánica","QUIM 1303 Fund. Quim. Org.","QUIM 3401 Bioquímica","QUIM 3407 Quím. Aromas","QUIM 3413 Quím. Medicinal","FISI 1038 Ondas y Fluidos","FISI 1048 Física Moderna","FISI 2405 Mecánica","MATE 1102 Matem. Estruct.","MATE 1107 Alg. Lineal 2","MATE 2101 Alg. Abstracta","MATE 2201 Análisis 1","MATE 2211 Calc. Var. Compl","MATE 2230 VarCompl&Análi.#","MATE 2301 Ecuac. Difer.","MATE 2711 Metod.Mate.Econ","MATE 2714 Intr.Mod.Mate.G.Fin.","MATE 3712 Teoría Juegos","GEOC 1002 Geociencias","GEOC 1022 Geología","GEOC 1038 Miner. Form. Roc.","GEOC 1140 Geoquímica","GEOC 1057 Geología Estruc.","ELCI 1001 Elec. Ciencias 1","ELCI 1002 Elec. Ciencias 2"]
["Saber Pro","Ok IIND","Otro programa"]
["Requisito Español","Seleccione","Req. Lengua Materna","Escrituras Universitarias"]
["epsilon","Req. Épsilon","No Aplica"]
["reglamento cbus","Seleccione","Antigua (6 CBU´s de 3 créditos)","Nueva (7 CBU´s de 2 créditos)","Regl. Transición"]
["tipo CBU antiguos","Ciencia y Tecnología","Ciencias Sociales","Artes y Humanidades"]
["épsilon, área","Área","CBCA","CBPC","CBCO"]
["transición","CT (antiguo)","AH (antiguo)","CS (antiguo)","CBU común Colombia - CBCC","Área de Colombia - CBCO","Pensamiento Científico - CBPC","Cultura, Artes, Humanidades - CBCA"]
[]
["profundización","Seleccione","Investigación de Operaciones y Estadística","Producción y Logística","Gestión de Organizaciones","Economía y Finanzas",null,"Seleccione","Investigación de Operaciones y Estadística","Producción y Logística","Gestión de Organizaciones","No definida"]
["homologaciones","No","Si"]
["ciclo terminal","Seleccione","Área Mayor y Área Menor","4 Cursos de la estructura de la Maestría en Ingeniería Industrial"]
[]
[]
["Seleccione"]
[{"$f":"YEAR(TODAY())&IF(MONTH(TODAY())<6,\"10\",\"20\")","v":"202510"}]
[{"$f":"IF(RIGHT(A54,2)=\"20\",A54-10,A54-90)","v":202420},null,null,null,"i","j"]
[{"$f":"IF(RIGHT(A55,2)=\"20\",A55-10,A55-90)","v":202410},null,null,"diferencial",29,2,null,"MATE"]
[202320,null,null,"integral",29,5,null,"BIOL"]
[202310,null,null,"algebra",29,8,null,"MBIO"]
[202220,null,null,"vectorial",29,11,null,"FISI"]
[202210,null,null,"biología",32,2,null,"QUIM"]
[202120,null,null,"fisica 1",32,5,null,"GEOC"]
[202110,null,null,"fisica 2",32,8,null,"ELCI"]
[202020,null,null,"fisica 1 exp",35,5,null,"FCIE"]
[202010,null,null,"fisica 2 exp",35,8]
[201920]
[201910]
[201820]
[201810]
[201720]
[201710]
[201620]
[201610]
[201520]
[201510]
[201420]
[201410]
[201320]
[201310]
[201220]
[201210]
[201120]
[201110]
[201020]
[201010]
[200920]
[200910]
[200820]
[200810]
[200720]
[200710]
[200620]
[200610]

{"sheet":"Opciones","index":2,"n_rows":110,"n_cols":37,"rows_kept":110,"cut":false,"hidden":true,"merged":[[105,10,105,11],[106,10,106,11],[2,4,2,5],[2,7,2,8],[2,10,2,11],[14,1,14,2],[14,4,14,5],[14,7,14,8],[14,10,14,11],[19,4,19,5],[2,1,2,2],[48,1,48,3],[48,4,48,6],[48,7,48,15],[49,1,49,3],[49,4,49,6],[49,7,49,15],[63,7,63,15],[60,1,60,3],[60,4,60,6],[60,7,60,15],[61,1,61,3],[61,4,61,6],[61,7,61,15],[14,13,14,14],[26,7,26,8],[2,21,2,22],[6,21,6,22],[2,29,2,30],[6,29,6,30],[26,16,26,17],[26,22,26,23],[27,1,27,2],[27,4,27,5],[27,13,27,14],[27,16,27,17],[27,22,27,23],[6,24,6,25],[10,21,10,22],[10,24,10,25],[26,28,26,29],[2,13,2,14],[7,4,7,5],[7,7,7,8],[26,1,26,2],[26,4,26,5],[26,10,26,11],[26,13,26,14],[48,16,48,20],[49,16,49,20],[51,16,51,20],[52,16,52,20],[33,13,33,14],[33,16,33,17],[33,22,33,23],[34,1,34,2],[34,13,34,14],[34,16,34,17],[34,22,34,23],[33,1,33,2],[33,7,33,8],[33,10,33,11],[40,16,40,17],[46,16,46,20],[47,16,47,20],[40,22,40,23],[41,1,41,2],[41,13,41,14],[41,16,41,17],[41,22,41,23],[40,1,40,2],[40,13,40,14],[46,1,46,3],[46,4,46,6],[46,7,46,15],[47,1,47,3],[47,4,47,6],[47,7,47,15],[58,16,58,20],[59,16,59,20],[53,16,53,20],[54,16,54,20],[51,1,51,3],[51,4,51,6],[51,7,51,15],[52,1,52,3],[60,16,60,20],[58,1,58,3],[58,4,58,6],[58,7,58,15],[59,1,59,3],[59,4,59,6],[59,7,59,15],[53,1,53,3],[53,4,53,6],[53,7,53,15],[54,1,54,3],[54,4,54,6],[54,7,54,15],[52,4,52,6],[52,7,52,15],[61,16,61,20],[62,16,62,20],[63,16,63,20],[69,1,69,3],[69,4,69,6],[69,7,69,15],[69,16,69,19],[64,1,64,3],[64,4,64,6],[64,7,64,15],[65,1,65,3],[65,4,65,6],[65,7,65,15],[64,16,64,20],[65,16,65,20],[68,20,68,21],[69,20,69,21],[68,1,68,3],[62,1,62,3],[62,4,62,6],[62,7,62,15],[63,1,63,3],[63,4,63,6],[74,20,74,21],[76,20,76,21],[74,1,74,3],[74,4,74,6],[74,7,74,15],[74,16,74,19],[75,1,75,3],[75,4,75,6],[75,7,75,15],[75,16,75,19],[75,20,75,21],[70,20,70,21],[71,20,71,21],[72,20,72,21],[73,1,73,3],[73,4,73,6],[73,7,73,15],[73,16,73,19],[72,1,72,3],[72,4,72,6],[72,7,72,15],[72,16,72,19],[70,1,70,3],[70,4,70,6],[70,7,70,15],[70,16,70,19],[71,1,71,3],[71,4,71,6],[71,7,71,15],[71,16,71,19],[73,20,73,21],[81,1,81,3],[81,4,81,6],[81,7,81,15],[81,16,81,19],[82,1,82,3],[82,4,82,6],[82,7,82,15],[82,16,82,19],[68,4,68,6],[68,7,68,15],[68,16,68,19],[80,1,80,12],[80,13,80,19],[79,1,79,19],[85,1,85,12],[85,13,85,19],[86,1,86,3],[86,4,86,6],[86,7,86,15],[86,16,86,19],[83,1,83,3],[83,4,83,6],[83,7,83,15],[83,16,83,19],[84,1,84,3],[84,4,84,6],[84,7,84,15],[84,16,84,19],[93,1,93,12],[93,13,93,19],[96,1,96,3],[96,4,96,6],[96,7,96,15],[96,16,96,19],[87,1,87,3],[87,4,87,6],[87,7,87,15],[87,16,87,19],[88,1,88,3],[88,4,88,6],[88,7,88,15],[88,16,88,19],[105,4,105,5],[106,4,106,5],[109,3,109,4],[109,6,109,7],[110,3,110,4],[110,6,110,7],[6,32,6,33],[10,29,10,30],[99,1,99,3],[99,4,99,6],[99,7,99,15],[99,16,99,19],[100,1,100,3],[100,4,100,6],[100,7,100,15],[100,16,100,19],[97,1,97,3],[97,4,97,6],[97,7,97,15],[97,16,97,19],[98,1,98,3],[98,4,98,6],[98,7,98,15],[98,16,98,19]]}
["CBU nuevo",null,null,null,null,null,null,null,null,null,null,null,null,null,null,null,null,null,null,null,null,"Profundización",null,"Area mayor y menor",null,null,null,null,null,"Profundización",null,"Maestría",null,null,null,null,"OPCIONES ACADÉMICAS"]
[]
[null,"CBU CC COL",null,null,"CBU COL",null,null,"CBU PC",null,null,"CBU 2",null,null,"CBU 3",null,null,null,null,null,null,null,"Electiva Prof. 1",null,null,null,null,null,null,null,"Electiva Prof. 1",null,null,null,null,null,null,"Homologaciones"]
[null,"Código",null,null,"Código",null,null,"Código",null,null,"Código",null,null,"Código",null,null,null,null,null,null,null,"Código",null,null,null,null,null,null,null,"Código"]
[null,"Nombre",null,null,"Nombre",null,null,"Nombre",null,null,"Nombre",null,null,"Nombre",null,null,null,null,null,null,null,"Nombre",null,null,null,null,null,null,null,"Nombre",null,null,null,null,null,null,"profundización"]
[null,"Créditos",null,null,"Créditos",null,null,"Créditos",null,null,"Créditos",null,null,"Créditos"]
[null,null,null,null,null,null,null,null,null,null,null,null,null,null,null,null,null,null,null,null,null,"Electiva Prof. 2",null,null,"Electiva Prof. 3",null,null,null,null,"Electiva Prof. 2",null,null,"Electiva Prof. 3"]
[null,null,null,null,"CBU CAH",null,null,"CBU 1",null,null,null,null,null,null,null,null,null,null,null,null,null,"Código",null,null,"Código",null,null,null,null,"Código",null,null,"Código"]
[null,null,null,null,"Código",null,null,"Código",null,null,null,null,null,null,null,null,null,null,null,null,null,"Nombre",null,null,"Nombre",null,null,null,null,"Nombre",null,null,"Nombre"]
[null,null,null,null,"Nombre",null,null,"Nombre"]
[null,null,null,null,"Créditos",null,null,"Créditos",null,null,null,null,null,null,null,null,null,null,null,null,null,"Electiva Prof. 4",null,null,"Electiva Prof. 5",null,null,null,null,"Electiva Prof. 4"]
[null,null,null,null,null,null,null,null,null,null,null,null,null,null,null,null,null,null,null,null,null,"Código",null,null,"Código",null,null,null,null,"Código"]
[null,null,null,null,null,null,null,null,null,null,null,null,null,null,null,null,null,null,null,null,null,"Nombre",null,null,"Nombre",null,null,null,null,"Nombre"]
["CBU Antiguo"]
[null,"CBU A CT",null,null,"CBU A CS",null,null,"CBU B 1",null,null,"CBU B 2",null,null,"CBU B 3",null,null,null,null,null,null,null,"Recuerde que si selecciona el área de Producción y Logística ya sea como área mayor o menor, el curso IIND 3218 Fundamentos de la Calidad es obligatorio."]
[null,"Código",null,null,"Código",null,null,"Código",null,null,"Código",null,null,"Código"]
[null,"Nombre",null,null,"Nombre",null,null,"Nombre",null,null,"Nombre",null,null,"Nombre"]
[null,"Créditos",null,null,"Créditos",null,null,"Créditos",null,null,"Créditos",null,null,"Créditos"]
[]
[null,null,null,null,"CBU A AH"]
[null,null,null,null,"Código"]
[null,null,null,null,"Nombre"]
[null,null,null,null,"Créditos"]
["201820 en adelante",null,null,null,null,null,null,null,null,null,null,null,null,null,null,null,null,null,null,"desde 201720"]
[]
[]
[null,"Escritura Univ. 1",null,null,"Escritura Univ. 2",null,null,"Curso Tipo E 1",null,null,"Curso Tipo E 2",null,null,"Req. Lectura Inglés",null,null,"Req. D. Leng. Extr.",null,null,null,null,null,"Saber Pro",null,null,"Programa",null,null,"Curso Tipo Épsilon"]
[null,null,null,null,null,null,null,"Código",null,null,"Código",null,null,null,null,null,null,null,null,null,null,null,null,null,null,"Año",null,null,"Código"]
[null,null,null,null,null,null,null,"Nombre",null,null,"Nombre",null,null,null,null,null,null,null,null,null,null,null,null,null,null,null,null,null,"Nombre"]
[]
["201120 hasta 201820"]
[]
[]
[null,"Req. Leng. Materna",null,null,null,null,null,"Curso Tipo E 1",null,null,"Curso Tipo E 2",null,null,"Req. Lectura Inglés",null,null,"Req. D. Leng. Extr.",null,null,null,null,null,"Saber Pro"]
[null,null,null,null,null,null,null,"Código",null,null,"Código"]
[null,null,null,null,null,null,null,"Nombre",null,null,"Nombre"]
[]
["Antes de 201120"]
[]
[]
[null,"Req. Leng. Materna",null,null,null,null,null,null,null,null,null,null,null,"Req. Lectura Inglés",null,null,"Req. D. Leng. Extr.",null,null,null,null,null,"Saber Pro"]
[]
[]
[]
["CBU antiguo"]
[null,"CURSOS TIPO A"]
[null,"Semestre",null,null,"Código del Curso",null,null,"Nombre del Curso",null,null,null,null,null,null,null,null,"Área del CBU"]
[]
[]
[]
[null,"CURSOS TIPO B"]
[null,"Semestre",null,null,"Código del Curso",null,null,"Nombre del Curso",null,null,null,null,null,null,null,null,"Área del CBU"]
[]
[]
[]
[]
[]
["CBU nuevo"]
[null,"Semestre",null,null,"Código del Curso",null,null,"Nombre del Curso",null,null,null,null,null,null,null,null,"Área del CBU"]
[null,null,null,null,null,null,null,null,null,null,null,null,null,null,null,null,"Curso Común de Colombia - CBCC"]
[null,null,null,null,null,null,null,null,null,null,null,null,null,null,null,null,"Curso del Área de Colombia - CBCO"]
[null,null,null,null,null,null,null,null,null,null,null,null,null,null,null,null,"Curso Cultura, Artes y Humanidades - CBCA"]
[null,null,null,null,null,null,null,null,null,null,null,null,null,null,null,null,"Curso Pensamiento Científico - CBPC"]
[]
[]
[]
[]
["Transición"]
[null,"Semestre",null,null,"Código del Curso",null,null,"Nombre del Curso",null,null,null,null,null,null,null,null,"Área del CBU",null,null,null,"Créditos"]
[]
[]
[]
[]
[]
[]
[]
[null,null,null,null,null,null,null,null,null,null,null,null,null,null,null,null,null,null,null,null,{"$f":"SUM(U70:V76)","v":0}]
[]
["área mayor y menor"]
[null,"Recuerde que si selecciona el área de Producción y Logística ya sea como área mayor o menor, el curso IIND 3218 Fundamentos de la Calidad, es obligatorio."]
[null,"Área Mayor Escogida",null,null,null,null,null,null,null,null,null,null,null,"Seleccione",null,null,null,null,null,null,null,null,null,null,null,"Investigación de Operaciones y Estadística"]
[null,"Semestre",null,null,"Código del Curso",null,null,"Nombre del Curso",null,null,null,null,null,null,null,null,"Créditos",null,null,null,null,null,null,null,null,"Gestión de Organizaciones"]
[null,null,null,null,null,null,null,null,null,null,null,null,null,null,null,null,null,null,null,null,null,null,null,null,null,"Producción y Logística"]
[null,null,null,null,null,null,null,null,null,null,null,null,null,null,null,null,null,null,null,null,null,null,null,null,null,"Economía y Finanzas"]
[]
[null,"Área Menor Escogida",null,null,null,null,null,null,null,null,null,null,null,"Seleccione"]
[null,"Semestre",null,null,"Código del Curso",null,null,"Nombre del Curso",null,null,null,null,null,null,null,null,"Créditos"]
[]
[]
[]
[]
["prof maestría"]
[]
[null,"Sub área de investigación escogida en Maestría",null,null,null,null,null,null,null,null,null,null,null,"Seleccione"]
[]
[]
[null,"Semestre",null,null,"Código del Curso",null,null,"Nombre del Curso",null,null,null,null,null,null,null,null,"Créditos"]
[]
[]
[]
[]
[]
[]
[]
["Transicion de física"]
[null,null,null,null,"Electiva ciencias 3",null,null,null,null,null,"Electiva ciencias 3"]
[]
[]
[]
[null,null,null,"Fisica Exp 1",null,null,"Fisica Exp 2"]